fUSD/lending_fUSD_20260329
["ID","MTS","AMOUNT","RATE_DAILY","PERIOD"]
[419049766,1774811441113,-924.0,0.00013421,2]
[419049767,1774811441123,-924.0,0.00013421,2]
[419049768,1774811441132,-924.0,0.00013421,2]
[419049769,1774811441142,-924.0,0.00013421,2]
[419049770,1774811441151,-924.0,0.00013421,2]
[419049771,1774811441160,-924.0,0.00013421,2]
[419049772,1774811441170,-924.0,0.00013421,2]
[419049773,1774811441179,-924.29149207,0.00013421,2]
[419049774,1774811441189,-500.0,0.00013421,2]
[419049775,1774811441199,-528.23221251,0.00013421,2]
[419049776,1774811441208,-1200.81381435,0.00013423,2]
[419049777,1774811441218,-181.751598,0.00013424,2]
[419049778,1774811441227,-232.970516,0.00013424,2]
[419049779,1774811441236,-3240.0,0.00013425,2]
[419049780,1774811441246,-216.903584,0.00013426,2]
[419049781,1774811441255,-1724.57206028,0.00013498,2]
[419049782,1774811441264,-1000.0,0.000135,2]
[419049783,1774811441273,-5466.0,0.000136,7]
[419049784,1774811441283,-500.0,0.00013698,2]
[419049785,1774811441293,-500.0,0.00013698,2]
[419049786,1774811441302,-500.0,0.00013698,2]
[419049787,1774811441312,-500.0,0.00013698,2]
[419049788,1774811441322,-500.0,0.00013698,2]
[419049789,1774811441331,-500.0,0.00013698,2]
[419049790,1774811441340,-500.0,0.00013698,2]
[419049791,1774811441350,-500.0,0.00013698,2]
[419049792,1774811441360,-500.0,0.00013698,2]
[419049793,1774811441370,-500.0,0.00013698,2]
[419049794,1774811441380,-500.0,0.00013698,2]
[419049795,1774811441390,-500.0,0.00013698,2]
[419049796,1774811441400,-500.0,0.00013698,2]
[419049797,1774811441410,-500.0,0.00013698,2]
[419049798,1774811441419,-212.34445911,0.00013698,2]
[419049799,1774811441429,-500.0,0.00013698,2]
[419049800,1774811441439,-500.0,0.00013698,2]
[419049801,1774811441449,-500.0,0.00013698,2]
[419049802,1774811441458,-500.0,0.00013698,2]
[419049803,1774811441467,-500.0,0.00013698,2]
[419049804,1774811441477,-500.0,0.00013698,2]
[419049805,1774811441487,-500.0,0.00013698,2]
[419049806,1774811441496,-500.0,0.00013698,2]
[419049807,1774811441507,-336.78,0.00013698,2]
[419049808,1774811441516,-500.0,0.00013698,2]
[419049809,1774811441527,-500.0,0.00013698,2]
[419049810,1774811441537,-500.0,0.00013698,2]
[419049811,1774811441546,-500.0,0.00013698,2]
[419049812,1774811441556,-500.0,0.00013698,2]
[419049813,1774811441565,-500.0,0.00013698,2]
[419049814,1774811441574,-500.0,0.00013698,2]
[419049815,1774811441583,-500.0,0.00013698,2]
[419049816,1774811441593,-500.0,0.00013698,2]
[419049817,1774811441603,-500.0,0.00013698,2]
[419049818,1774811441613,-500.0,0.00013698,2]
[419049819,1774811441622,-205.92,0.00013698,2]
[419049820,1774811441632,-500.0,0.00013698,2]
[419049821,1774811441641,-500.0,0.00013698,2]
[419049822,1774811441651,-500.0,0.00013698,2]
[419049823,1774811441660,-500.0,0.00013698,2]
[419049824,1774811441670,-500.0,0.00013698,2]
[419049825,1774811441680,-500.0,0.00013698,2]
[419049826,1774811441689,-500.0,0.00013698,2]
[419049827,1774811441699,-500.0,0.00013698,2]
[419049828,1774811441709,-500.0,0.00013698,2]
[419049829,1774811441718,-500.0,0.00013698,2]
[419049830,1774811441728,-500.0,0.00013698,2]
[419049831,1774811441738,-321.84,0.00013698,2]
[419049832,1774811441747,-500.0,0.00013698,2]
[419049833,1774811441756,-500.0,0.00013698,2]
[419049834,1774811441766,-500.0,0.00013698,2]
[419049835,1774811441776,-500.0,0.00013698,2]
[419049836,1774811441786,-500.0,0.00013698,2]
[419049837,1774811441796,-500.0,0.00013698,2]
[419049838,1774811441806,-500.0,0.00013698,2]
[419049839,1774811441816,-500.0,0.00013698,2]
[419049840,1774811441825,-500.0,0.00013698,2]
[419049841,1774811441834,-500.0,0.00013698,2]
[419049842,1774811441843,-500.0,0.00013698,2]
[419049843,1774811441853,-500.0,0.00013698,2]
[419049844,1774811441863,-500.0,0.00013698,2]
[419049845,1774811441873,-500.0,0.00013698,2]
[419049846,1774811441884,-500.0,0.00013698,2]
[419049847,1774811441894,-500.0,0.00013698,2]
[419049848,1774811441904,-500.0,0.00013698,2]
[419049849,1774811441913,-500.0,0.00013698,2]
[419049850,1774811441922,-500.0,0.00013698,2]
[419049851,1774811441931,-500.0,0.00013698,2]
[419049852,1774811441940,-500.0,0.00013698,2]
[419049853,1774811441950,-500.0,0.00013698,2]
[419049854,1774811441961,-500.0,0.00013698,2]
[419049855,1774811441971,-500.0,0.00013698,2]
[419049856,1774811441980,-500.0,0.00013698,2]
[419049857,1774811441990,-500.0,0.00013698,2]
[419049858,1774811442000,-500.0,0.00013698,2]
[419049859,1774811442010,-500.0,0.00013698,2]
[419049860,1774811442021,-315.34588043,0.00013698,2]
[419049861,1774811442032,-500.0,0.00013698,2]
[419049862,1774811442042,-500.0,0.00013698,2]
[419049863,1774811442052,-522.48236244,0.00013698,2]
[419049864,1774811442062,-500.0,0.00013698,2]
[419049865,1774811442071,-491.51644773,0.00013698,2]
[419049866,1774811442081,-500.0,0.00013698,2]
[419049867,1774811442091,-500.0,0.00013698,2]
[419049868,1774811442100,-553.10600438,0.00013698,2]
[419049869,1774811442110,-500.0,0.00013698,2]
[419049870,1774811442119,-500.0,0.00013698,2]
[419049871,1774811442128,-500.0,0.00013698,2]
[419049872,1774811442138,-500.0,0.00013698,2]
[419049873,1774811442147,-500.0,0.00013698,2]
[419049874,1774811442157,-500.0,0.00013698,2]
[419049875,1774811442167,-500.0,0.00013698,2]
[419049876,1774811442176,-500.0,0.00013698,2]
[419049877,1774811442185,-500.0,0.00013698,2]
[419049878,1774811442195,-500.0,0.00013698,2]
[419049879,1774811442205,-500.0,0.00013698,2]
[419049880,1774811442214,-500.0,0.00013698,2]
[419049881,1774811442224,-169.38,0.00013698,2]
[419049882,1774811442233,-500.0,0.00013698,2]
[419049883,1774811442242,-551.92950635,0.00013698,2]
[419049884,1774811442251,-500.0,0.00013698,2]
[419049885,1774811442261,-500.0,0.00013698,2]
[419049886,1774811442270,-500.0,0.00013698,2]
[419049887,1774811442279,-500.0,0.00013698,2]
[419049888,1774811442289,-500.0,0.00013698,2]
[419049889,1774811442298,-500.0,0.00013698,2]
[419049890,1774811442307,-500.0,0.00013698,2]
[419049891,1774811442317,-500.0,0.00013698,2]
[419049892,1774811442326,-500.0,0.00013698,2]
[419049893,1774811442335,-500.0,0.00013698,2]
[419049894,1774811442345,-500.0,0.00013698,2]
[419049895,1774811442355,-500.0,0.00013698,2]
[419049896,1774811442364,-500.0,0.00013698,2]
[419049897,1774811442373,-500.0,0.00013698,2]
[419049898,1774811442382,-500.0,0.00013698,2]
[419049899,1774811442392,-614.88,0.00013698,2]
[419049900,1774811442401,-500.0,0.00013698,2]
[419049901,1774811442411,-500.0,0.00013698,2]
[419049902,1774811442421,-500.0,0.00013698,2]
[419049903,1774811442430,-500.0,0.00013698,2]
[419049904,1774811442439,-500.0,0.00013698,2]
[419049905,1774811442448,-500.0,0.00013698,2]
[419049906,1774811442458,-500.0,0.00013698,2]
[419049907,1774811442467,-500.0,0.00013698,2]
[419049908,1774811442476,-500.0,0.00013698,2]
[419049909,1774811442485,-500.0,0.00013698,2]
[419049910,1774811442495,-500.0,0.00013698,2]
[419049911,1774811442504,-500.0,0.00013698,2]
[419049912,1774811442514,-500.0,0.00013698,2]
[419049913,1774811442523,-500.0,0.00013698,2]
[419049914,1774811442532,-500.0,0.00013698,2]
[419049915,1774811442542,-171.16,0.00013698,2]
[419049916,1774811442551,-500.0,0.00013698,2]
[419049917,1774811442560,-500.0,0.00013698,2]
[419049918,1774811442570,-500.0,0.00013698,2]
[419049919,1774811442579,-500.0,0.00013698,2]
[419049920,1774811442589,-500.0,0.00013698,2]
[419049921,1774811442598,-500.0,0.00013698,2]
[419049922,1774811442607,-500.0,0.00013698,2]
[419049923,1774811442617,-500.0,0.00013698,2]
[419049924,1774811442626,-500.0,0.00013698,2]
[419049925,1774811442635,-500.0,0.00013698,2]
[419049926,1774811442645,-500.0,0.00013698,2]
[419049927,1774811442654,-500.0,0.00013698,2]
[419049928,1774811442663,-500.0,0.00013698,2]
[419049929,1774811442672,-500.0,0.00013698,2]
[419049930,1774811442681,-500.0,0.00013698,2]
[419049931,1774811442690,-500.0,0.00013698,2]
[419049932,1774811442700,-500.0,0.00013698,2]
[419049933,1774811442710,-500.0,0.00013698,2]
[419049934,1774811442719,-500.0,0.00013698,2]
[419049935,1774811442729,-500.0,0.00013698,2]
[419049936,1774811442738,-500.0,0.00013698,2]
[419049937,1774811442748,-264.43655738,0.00013698,2]
[419049938,1774811442758,-500.0,0.00013698,2]
[419049939,1774811442767,-500.0,0.00013698,2]
[419049940,1774811442776,-500.0,0.00013698,2]
[419049942,1774811442786,-500.0,0.00013698,2]
[419049944,1774811442798,-500.0,0.00013698,2]
[419049945,1774811442808,-500.0,0.00013698,2]
[419049946,1774811442817,-500.0,0.00013698,2]
[419049947,1774811442826,-500.0,0.00013698,2]
[419049948,1774811442835,-500.0,0.00013698,2]
[419049949,1774811442845,-500.0,0.00013698,2]
[419049950,1774811442855,-500.0,0.00013698,2]
[419049951,1774811442864,-500.0,0.00013698,2]
[419049952,1774811442873,-500.0,0.00013698,2]
[419049953,1774811442883,-566.97722897,0.00013698,2]
[419049954,1774811442892,-220.41161421,0.00013699,2]
[419049955,1774811442901,-354.69381036,0.00013699,2]
[419049956,1774811442910,-500.0,0.00013699,2]
[419049957,1774811442920,-225.66563804,0.00013699,2]
[419049958,1774811442930,-500.0,0.00013699,2]
[419049959,1774811442939,-3931.93,0.000137,2]
[419049960,1774811442948,-3704.3,0.000137,2]
[419049961,1774811442958,-3498.66,0.000137,2]
[419049962,1774811442967,-1424.83,0.000137,2]
[419049963,1774811442977,-2556.16,0.000137,2]
[419049965,1774811442987,-16691.61,0.000137,2]
[419049967,1774811442995,-7021.4275514,0.00013865,2]
[419049968,1774811443005,-154.52171326,0.0001387,2]
[419049969,1774811443014,-600.0,0.00013888,2]
[419049971,1774811443023,-434.69667391,0.00014046,2]
[419049974,1774811443033,-28692.08909669,0.00014115,2]
[419049976,1774811443043,-1052.52786772,0.00014247,2]
[419049978,1774811443052,-1000.0,0.00014247,2]
[419049980,1774811443061,-1200.81381435,0.00014249,2]
[419049981,1774811443070,-306.0,0.00014329,2]
[419049983,1774811443080,-10397.42105758,0.0001439,2]
[419049985,1774811443089,-403.83679365,0.000144,2]
[419049987,1774811443099,-339.15,0.000144,2]
[419049988,1774811443108,-500.0,0.00014411,2]
[419049989,1774811443117,-4609.0,0.00014493,2]
[419049990,1774811443127,-1117.0799,0.00014504,2]
[419049992,1774811443136,-959.8630956,0.00014508,2]
[419049994,1774811443146,-160.0,0.00014508,2]
[419049996,1774811443156,-160.0,0.00014508,2]
[419049998,1774811443167,-7021.4275514,0.00014614,2]
[419050000,1774811443176,-1252.0,0.00014639,2]
[419050001,1774811443186,-1500.0,0.00014795,2]
[419050002,1774811443195,-161.4,0.00015,2]
[419050003,1774811443205,-300.0,0.00015,2]
[419050004,1774811443214,-2065.44755052,0.00015,2]
[419050005,1774811443223,-4998.82438298,0.00015,2]
[419050006,1774811443233,-8077.67315191,0.00015,2]
[419050007,1774811443244,-900.0,0.00015068,2]
[419050008,1774811443254,-1200.81381435,0.00015074,2]
[419050009,1774811443264,-300.0,0.000151,2]
[419050010,1774811443274,-1000.0,0.00015167,2]
[419050011,1774811443284,-2925.15918205,0.000152,2]
[419050012,1774811443294,-500.0,0.00015273,2]
[419050013,1774811443304,-1219.67,0.00015321,2]
[419050014,1774811443314,-930.845,0.00015321,2]
[419050015,1774811443324,-2000.0,0.00015342,2]
[419050016,1774811443334,-578.20924308,0.00015352,2]
[419050017,1774811443344,-500.0,0.00015352,2]
[419050018,1774811443355,-500.0,0.00015352,2]
[419050019,1774811443365,-151.0,0.00015352,2]
[419050020,1774811443375,-1428.38747117,0.00015352,2]
[419050021,1774811443384,-500.0,0.00015352,2]
[419050022,1774811443395,-209.40437684,0.00015352,2]
[419050023,1774811443404,-500.0,0.00015352,2]
[419050024,1774811443414,-500.0,0.00015352,2]
[419050025,1774811443423,-500.0,0.00015352,2]
[419050026,1774811443433,-500.0,0.00015352,2]
[419050027,1774811443442,-500.0,0.00015352,2]
[419050028,1774811443452,-500.0,0.00015352,2]
[419050029,1774811443463,-500.0,0.00015352,2]
[419050030,1774811443472,-500.0,0.00015352,2]
[419050031,1774811443483,-500.0,0.00015352,2]
[419050032,1774811443492,-209.40437684,0.00015352,2]
[419050033,1774811443502,-500.0,0.00015352,2]
[419050034,1774811443511,-500.0,0.00015352,2]
[419050035,1774811443521,-500.0,0.00015352,2]
[419050036,1774811443530,-500.0,0.00015352,2]
[419050037,1774811443540,-500.0,0.00015352,2]
[419050038,1774811443550,-500.0,0.00015352,2]
[419050039,1774811443560,-500.0,0.00015352,2]
[419050040,1774811443570,-500.0,0.00015352,2]
[419050041,1774811443579,-500.0,0.00015352,2]
[419050042,1774811443589,-500.0,0.00015352,2]
[419050043,1774811443599,-500.0,0.00015352,2]
[419050044,1774811443608,-151.0,0.00015352,2]
[419050045,1774811443618,-500.0,0.00015352,2]
[419050046,1774811443628,-500.0,0.00015352,2]
[419050047,1774811443638,-500.0,0.00015352,2]
[419050048,1774811443647,-500.0,0.00015352,2]
[419050049,1774811443657,-500.0,0.00015352,2]
[419050050,1774811443667,-500.0,0.00015352,2]
[419050051,1774811443677,-500.0,0.00015352,2]
[419050052,1774811443687,-500.0,0.00015352,2]
[419050053,1774811443697,-500.0,0.00015352,2]
[419050054,1774811443707,-174.61919141,0.00015352,2]
[419050055,1774811443717,-500.0,0.00015352,2]
[419050056,1774811443727,-500.0,0.00015352,2]
[419050057,1774811443737,-200.0,0.00015352,2]
[419050058,1774811443746,-693.3919763,0.00015352,2]
[419050059,1774811443756,-250.0,0.00015352,2]
[419050060,1774811443766,-250.0,0.00015352,2]
[419050061,1774811443776,-250.0,0.00015352,2]
[419050062,1774811443786,-250.0,0.00015352,2]
[419050063,1774811443795,-250.0,0.00015352,2]
[419050064,1774811443804,-250.0,0.00015352,2]
[419050065,1774811443814,-209.40437684,0.00015352,2]
[419050067,1774811443824,-250.0,0.00015352,2]
[419050068,1774811443833,-250.0,0.00015352,2]
[419050069,1774811443842,-250.0,0.00015352,2]
[419050070,1774811443852,-250.0,0.00015352,2]
[419050071,1774811443862,-250.0,0.00015352,2]
[419050072,1774811443871,-279.9045709,0.00015352,2]
[419050073,1774811443880,-743.50770149,0.00015352,2]
[419050074,1774811443890,-262.90206542,0.00015352,2]
[419050075,1774811443899,-209.40437684,0.00015352,2]
[419050076,1774811443909,-500.0,0.00015352,2]
[419050077,1774811443918,-500.0,0.00015352,2]
[419050078,1774811443928,-500.0,0.00015352,2]
[419050079,1774811443938,-500.0,0.00015352,2]
[419050080,1774811443947,-500.0,0.00015352,2]
[419050081,1774811443957,-1329.0,0.0001536,2]
[419050082,1774811443966,-2482.596,0.0001536,2]
[419050083,1774811443976,-6013.0,0.0001536,2]
[419050084,1774811443986,-7021.4275514,0.00015362,2]
[419050085,1774811443996,-170.6695027,0.00015373,2]
[419050086,1774811444006,-600.0,0.00015374,2]
[419050087,1774811444015,-500.0,0.00015407,2]
[419050088,1774811444025,-151.0,0.00015407,2]
[419050089,1774811444035,-272.62944185,0.00015407,2]
[419050090,1774811444044,-238.548973,0.00015438,7]
[419050091,1774811444054,-204.786379,0.00015438,7]
[419050092,1774811444064,-175.930491,0.00015438,7]
[419050093,1774811444074,-500.0,0.00015462,2]
[419050094,1774811444084,-151.0,0.00015462,2]
[419050095,1774811444093,-282.71673119,0.00015462,2]
[419050096,1774811444103,-2003.48418562,0.000155,3]
[419050097,1774811444112,-500.0,0.00015517,2]
[419050098,1774811444122,-151.0,0.00015517,2]
[419050099,1774811444131,-293.17725025,0.00015517,2]
[419050100,1774811444141,-250.0,0.00015566,2]
[419050101,1774811444151,-500.0,0.00015572,2]
[419050102,1774811444161,-151.0,0.00015572,2]
[419050103,1774811444170,-304.02480851,0.00015572,2]
[419050104,1774811444180,-1096.24809732,0.00015608,2]
[419050105,1774811444189,-500.0,0.00015627,2]
[419050106,1774811444200,-151.0,0.00015627,2]
[419050107,1774811444209,-315.27372642,0.00015627,2]
[419050108,1774811444218,-732.73812256,0.00015634,2]
[419050109,1774811444228,-224.653,0.00015666,2]
[419050110,1774811444237,-250.0,0.00015666,2]
[419050111,1774811444246,-196.331,0.00015666,2]
[419050112,1774811444255,-238.05,0.00015666,2]
[419050113,1774811444264,-162.713,0.00015666,2]
[419050114,1774811444274,-250.0,0.00015666,2]
[419050115,1774811444283,-193.362,0.00015666,2]
[419050116,1774811444292,-165.951,0.00015666,2]
[419050117,1774811444301,-214.712,0.00015666,2]
[419050118,1774811444310,-250.0,0.00015666,2]
[419050119,1774811444319,-239.03,0.00015666,2]
[419050120,1774811444328,-179.0,0.00015666,2]
[419050121,1774811444338,-3518.0,0.00015666,2]
[419050122,1774811444347,-621.0,0.00015666,2]
[419050123,1774811444356,-1045.0,0.00015666,2]
[419050124,1774811444365,-150.0,0.00015666,2]
[419050125,1774811444374,-1262.0,0.00015666,2]
[419050126,1774811444383,-500.0,0.00015682,2]
[419050127,1774811444392,-151.0,0.00015682,2]
[419050128,1774811444402,-326.9388543,0.00015682,2]
[419050129,1774811444411,-1200.0,0.000157,5]
[419050130,1774811444420,-1100.0,0.000157,5]
[419050131,1774811444429,-200.0,0.000157,5]
[419050132,1774811444439,-162.0,0.0001572,2]
[419050133,1774811444448,-1570.0,0.0001572,2]
[419050134,1774811444457,-500.0,0.00015737,2]
[419050135,1774811444467,-151.0,0.00015737,2]
[419050136,1774811444476,-339.03559191,0.00015737,2]
[419050137,1774811444485,-500.0,0.00015792,2]
[419050138,1774811444495,-151.0,0.00015792,2]
[419050139,1774811444504,-445.1353,0.000158,2]
[419050140,1774811444515,-1200.0,0.000158,5]
[419050141,1774811444525,-1100.0,0.000158,5]
[419050142,1774811444818,-200.0,0.000158,5]
[419050143,1774811444830,-500.0,0.00015847,2]
[419050144,1774811444841,-151.0,0.00015847,2]
[419050145,1774811444850,-2500.0,0.0001589,2]
[419050146,1774811444860,-20210.25894818,0.000159,2]
[419050147,1774811444871,-1200.0,0.000159,5]
[419050148,1774811444882,-1100.0,0.000159,5]
[419050149,1774811444895,-205174.86764607,0.000159,2]
[419050150,1774811444904,-1200.81381435,0.000159,2]
[419050151,1774811444915,-200.0,0.000159,5]
[419050152,1774811444925,-150.0,0.000159,2]
[419050153,1774811444936,-38738.26631164,0.000159,2]
[419050154,1774811444948,-2409.48389198,0.000159,2]
[419050155,1774811444958,-151.0,0.000159,2]
[419050156,1774811444967,-1481.23780761,0.000159,2]
[419050157,1774811444977,-217.15233878,0.000159,2]
[419050158,1774811444986,-217.15233878,0.000159,2]
[419050159,1774811444997,-181.08010149,0.000159,2]
[419050160,1774811445008,-200.0,0.000159,2]
[419050161,1774811445018,-719.04747942,0.000159,2]
[419050162,1774811445029,-217.15233878,0.000159,2]
[419050163,1774811445040,-290.26104003,0.000159,2]
[419050164,1774811445050,-771.01748645,0.000159,2]
[419050165,1774811445059,-500.0,0.00015902,2]
[419050166,1774811445069,-151.0,0.00015902,2]
[419050167,1774811445078,-6453.0,0.00015942,2]
[419050168,1774811445090,-3835.20744626,0.0001596,2]
[419050169,1774811445100,-500.0,0.00015973,2]
[419050170,1774811445110,-500.0,0.00015973,2]
[419050171,1774811445121,-2067.0,0.00015977,2]
[419050172,1774811445130,-1000.0,0.00015982,2]
[419050173,1774811445141,-1000.0,0.00015982,2]
[419050174,1774811445152,-1000.0,0.00015982,2]
[419050175,1774811445163,-1000.0,0.00015982,2]
[419050176,1774811445172,-1000.0,0.00015982,2]
[419050177,1774811445182,-469.082,0.00015982,2]
[419050178,1774811445191,-1000.0,0.00015987,2]
[419050179,1774811445200,-1000.0,0.00015987,2]
[419050180,1774811445210,-1000.0,0.00015987,2]
[419050181,1774811445219,-1000.0,0.00015987,2]
[419050182,1774811445229,-1000.0,0.00015987,2]
[419050183,1774811445239,-1000.0,0.00015987,2]
[419050184,1774811445248,-1000.0,0.00015987,2]
[419050185,1774811445258,-1000.0,0.00015987,2]
[419050186,1774811445267,-1000.0,0.00015987,2]
[419050187,1774811445276,-1000.0,0.00015987,2]
[419050188,1774811445286,-1000.0,0.00015987,2]
[419050189,1774811445295,-1000.0,0.00015987,2]
[419050190,1774811445305,-1000.0,0.00015987,2]
[419050191,1774811445315,-1000.0,0.00015987,2]
[419050192,1774811445324,-710.164,0.00015987,2]
[419050193,1774811445334,-666.0,0.00015999,2]
[419050194,1774811445344,-666.0,0.00015999,2]
[419050195,1774811445353,-151.0,0.00016,2]
[419050196,1774811445363,-151.0,0.00016,2]
[419050197,1774811445372,-2856839.01353138,0.00016,2]
[419050198,1774811445393,-301.76454383,0.00016,2]
[419050199,1774811445543,-511.95657192,0.00010016,2]
[419050200,1774811445597,-1352802.21941013,0.00010016,2]
[419050201,1774811445654,-2087.35561169,0.00010016,2]
[419050202,1774811445769,-437.85147533,0.00010016,2]
[419050204,1774811445990,-239108.00028428,0.00010016,2]
[419050205,1774811446043,-438.5287149,0.00010016,2]
[419050206,1774811446152,-1066.19098495,0.00010016,2]
[419050207,1774811446206,-1570.19996544,0.00010016,2]
[419050208,1774811461594,3630.9,7.715e-05,2]
[419050209,1774811461671,1369.11,8.121e-05,2]
[419050210,1774811461692,2261.79,8.121e-05,2]
[419050211,1774811461764,2738.22,8.527e-05,2]
[419050212,1774811461788,892.68,8.527e-05,2]
[419050213,1774811461849,3630.9,8.933e-05,2]
[419050214,1774811461939,3630.9,9.339e-05,2]
[419050215,1774811541644,1070.0,9.083e-05,2]
[419050216,1774811541760,2160.0,9.243e-05,2]
[419050217,1774811584880,-2300.0,9.54e-05,2]
[419050218,1774811584912,-1428.18,9.663e-05,2]
[419050219,1774811584941,-250.0,9.684e-05,2]
[419050220,1774811590813,-5000.0,9.704e-05,2]
[419050221,1774811597281,-300.0,9.744e-05,2]
[419050222,1774811597311,-300.0,9.744e-05,2]
[419050223,1774811597342,-3630.9,9.745e-05,2]
[419050224,1774811614475,1010.0,9.358e-05,2]
[419050225,1774811660153,2000.0,9.144e-05,2]
[419050226,1774811710733,154.0,9.144e-05,3]
[419050227,1774811712389,1852.42,9.144e-05,2]
[419050228,1774811863539,481.54,8.78e-05,2]
[419050229,1774811912318,235.77,9.088e-05,2]
[419050230,1774811924280,227.58,7.252e-05,2]
[419050231,1774811924476,227.58,7.977e-05,2]
[419050232,1774811924662,227.58,8.702e-05,2]
[419050233,1774811924871,227.58,9.427e-05,2]
[419050234,1774812007132,154.0,9.144e-05,3]
[419050235,1774812141167,482.52,0.00017,60]
[419050236,1774812198470,-254.0,9.593e-05,2]
[419050237,1774812198499,-235.77,9.593e-05,2]
[419050238,1774812198529,-2053.9655915,9.616e-05,2]
[419050239,1774812198557,-282.24128288,9.616e-05,2]
[419050240,1774812198586,-1100.0,9.639e-05,2]
[419050241,1774812198614,-250.0,9.685e-05,2]
[419050242,1774812198645,-648.05625124,9.731e-05,2]
[419050243,1774812204447,-351.94374876,9.731e-05,2]
[419050244,1774812204478,-924.0,9.741e-05,2]
[419050245,1774812204508,-924.0,9.741e-05,2]
[419050246,1774812204538,-924.0,9.741e-05,2]
[419050247,1774812204567,-924.0,9.741e-05,2]
[419050248,1774812204596,-924.0,9.741e-05,2]
[419050249,1774812208693,-924.0,9.741e-05,2]
[419050250,1774812208722,-924.0,9.741e-05,2]
[419050251,1774812208752,-924.0,9.741e-05,2]
[419050252,1774812208781,-500.0,9.741e-05,2]
[419050253,1774812208810,-924.0,9.741e-05,2]
[419050254,1774812208838,-528.23221251,9.741e-05,2]
[419050255,1774812311002,155.0,9.144e-05,3]
[419050256,1774812419319,874.02,8.539e-05,2]
[419050257,1774812419407,711.34,9.439e-05,2]
[419050259,1774812427839,328.3,7.945e-05,2]
[419050260,1774812440080,3659.16,9.089e-05,2]
[419050261,1774812447601,-2300.0,9.7e-05,3]
[419050262,1774812447628,-1200.0,9.74e-05,2]
[419050263,1774812447655,-300.0,9.74e-05,2]
[419050264,1774812447684,-300.0,9.74e-05,2]
[419050265,1774812447712,-150.0,9.74e-05,2]
[419050266,1774812447740,-300.0,9.74e-05,2]
[419050267,1774812447768,-250.0,9.741e-05,2]
[419050268,1774812448002,-924.0,9.741e-05,2]
[419050269,1774812448032,-924.0,9.741e-05,2]
[419050270,1774812448061,-924.0,9.741e-05,2]
[419050271,1774812448090,-924.0,9.741e-05,2]
[419050272,1774812448118,-924.0,9.741e-05,2]
[419050273,1774812448202,-924.0,9.741e-05,2]
[419050274,1774812448231,-924.0,9.741e-05,2]
[419050275,1774812448261,-924.0,9.741e-05,2]
[419050276,1774812448290,-924.0,9.741e-05,2]
[419050277,1774812448319,-924.0,9.741e-05,2]
[419050278,1774812448369,-924.0,9.741e-05,2]
[419050279,1774812448398,-924.0,9.741e-05,2]
[419050280,1774812448428,-924.0,9.741e-05,2]
[419050281,1774812448458,-924.0,9.741e-05,2]
[419050282,1774812448487,-924.29149207,9.741e-05,2]
[419050283,1774812448517,-198.55759631,9.741e-05,2]
[419050284,1774812448648,-4600.0,9.8e-05,3]
[419050285,1774812448832,-1350.0,9.856e-05,2]
[419050286,1774812448862,-1190.0,9.886e-05,2]